bitfinex-derivatives/quotes_ETHF0:USTF0_20251031
["timestamp","ask_amount","ask_price","bid_price","bid_amount"]
[1761873300403,14.1914,3854.6,3854.5,8.76672321]
[1761873300802,14.1914,3854.6,3854.5,4.66792321]
[1761873300999,14.1914,3854.6,3854.5,3.21022321]
[1761873302615,4.7304,3853.8,3853.7,3.2078]
[1761873302808,0.8228,3853.5,3853.3,3.2078]
[1761873303106,14.1904,3853.4,3853.3,3.2078]
[1761873303608,14.1904,3853.4,3853.3,3.21048223]
[1761873304006,1.3766,3853.8,3853.7,4.7328]
[1761873304199,10.8366,3853.8,3853.7,7.9406]
[1761873304399,14.1904,3853.8,3853.7,7.9406]
[1761873304705,1.3766,3854.1,3854.0,5.5565]
[1761873304916,9.46,3854.1,3854.0,5.5565]
[1761873305203,3.4278,3854.7,3854.6,1.4577]
[1761873305399,4.7304,3854.7,3854.6,4.7328]
[1761873305600,12.1392,3854.7,3854.6,4.7328]
[1761873306000,2.6792,3854.7,3854.6,4.7328]
[1761873306510,10.8366,3854.7,3854.6,4.7328]
[1761873306893,1.3766,3854.4,3854.3,44.0078]
[1761873307110,4.7304,3854.4,3854.3,40.8]
[1761873307610,14.1904,3854.7,3854.6,4.7328]
[1761873307811,4.7304,3854.3,3854.2,4.6655]
[1761873308009,4.7304,3854.0,3853.9,3.45046125]
[1761873308313,4.7304,3854.0,3853.9,8.62186125]
[1761873308698,4.7304,3853.8,3853.7,1.4577]
[1761873308907,4.7304,3853.6,3853.5,3.4213]
[1761873309605,4.7304,3853.4,3853.3,3.21048223]
[1761873309915,14.1884,3853.4,3853.3,3.21048223]
[1761873310708,1.7669,3854.0,3853.9,1.3735]
[1761873311011,16.3411,3856.0,3853.9,1.3735]
[1761873311012,1.39768517,3855.4,3854.5,11.94612]
[1761873311215,1.86335487,3856.7,3856.6,3.2157]
[1761873311420,3.1353,3856.7,3856.6,1.3735]
[1761873311608,12.5933,3856.7,3856.6,1.3735]
[1761873312113,12.59520077,3856.7,3856.6,1.3758289]
[1761873312411,13.80830077,3856.7,3856.6,0.0023289]
[1761873313011,13.80830077,3856.7,3856.6,1.3758289]
[1761873313209,13.80830077,3856.7,3856.6,0.0023289]
[1761873315422,9.45690077,3856.7,3856.6,4.4599289]
[1761873315719,12.59220077,3856.7,3856.6,4.4599289]
[1761873315914,13.80530077,3856.7,3856.6,1.3758289]
[1761873317012,4.35030077,3856.7,3856.6,1.3758289]
[1761873317212,13.80530077,3856.7,3856.6,1.3758289]
[1761873317516,13.80530077,3856.7,3856.6,0.0023289]
[1761873322814,13.80530077,3856.7,3856.6,1.1987289]
[1761873325020,4.35030077,3856.7,3856.6,4.2525289]
[1761873325229,13.82160077,3856.7,3856.6,4.2525289]
[1761873325420,13.82160077,3856.7,3856.6,2.3580289]
[1761873326219,13.82160077,3856.7,3856.6,0.0023289]
[1761873327014,13.82160077,3856.7,3856.6,1.1987289]
[1761873327226,4.37060077,3856.7,3856.6,4.2525289]
[1761873327423,0.00190077,3856.7,3856.6,4.2525289]
[1761873327623,9.45190077,3856.7,3856.6,4.2525289]
[1761873327823,3.8303,3857.5,3857.4,2.3557]
[1761873328028,12.5122,3857.5,3857.4,4.2502]
[1761873328328,13.7456,3857.5,3857.4,4.2502]
[1761873328524,14.4512,3857.5,3857.4,2.3557]
[1761873329030,14.45357983,3857.5,3857.4,2.3557]
[1761873329213,3.06457983,3857.5,3857.4,4.2502]
[1761873329422,12.51357983,3857.5,3857.4,4.2502]
[1761873329724,13.74697983,3857.5,3857.4,4.2502]
[1761873330311,4.2956,3857.4,3857.3,3.2078]
[1761873330520,4.2956,3857.4,3856.6,0.0023289]
[1761873330521,5.0012,3857.0,3856.9,7.458]
[1761873330728,14.4492,3857.0,3856.9,7.458]
[1761873330918,1.778,3857.3,3857.0,2.5983]
[1761873331227,5.0012,3857.0,3856.9,3.2078]
[1761873331626,4.2956,3857.0,3856.9,7.458]
[1761873331926,3.0622,3857.3,3857.2,4.2502]
[1761873332133,10.7312,3857.3,3857.2,4.2502]
[1761873332421,12.5092,3857.3,3857.2,4.2502]
[1761873332830,13.7426,3857.3,3857.2,2.3557]
[1761873333218,13.7426,3857.3,3857.2,1.1964]
[1761873335823,13.7426,3857.3,3857.2,4.2502]
[1761873337230,10.7312,3857.3,3857.2,4.2502]
[1761873337620,12.5092,3857.3,3857.2,4.2502]
[1761873337824,10.7312,3857.3,3857.2,4.2502]
[1761873338626,10.7282,3857.3,3857.2,4.2502]
[1761873339125,12.5062,3857.3,3857.2,4.2502]
[1761873339918,13.7396,3857.3,3857.2,2.3557]
[1761873340127,13.7396,3857.3,3856.9,3.2078]
[1761873340128,5.0012,3857.0,3856.9,3.2078]
[1761873340330,4.2956,3856.7,3856.6,0.0023289]
[1761873340531,13.7376,3856.7,3856.6,0.0023289]
[1761873341633,4.0892,3856.2,3856.1,3.2078]
[1761873341830,4.0892,3856.2,3855.7,3.8886204]
[1761873341831,13.5312,3856.2,3855.7,3.8886204]
[1761873342024,4.0892,3855.8,3855.7,3.2078]
[1761873342223,4.0892,3855.4,3855.3,3.2078]
[1761873342424,4.0892,3855.4,3854.8,3.2078]
[1761873342425,4.0892,3854.9,3854.8,3.2078]
[1761873342621,13.5312,3854.9,3854.8,3.2109621]
[1761873343024,13.5312,3854.9,3854.8,0.0031621]
[1761873343234,13.5312,3854.9,3854.8,1.2804621]
[1761873343235,13.5302,3854.9,3854.8,1.2804621]
[1761873343429,13.5302,3854.9,3854.8,0.0031621]
[1761873344142,4.0892,3854.1,3854.0,3.2078]
[1761873344337,13.5302,3854.1,3854.0,3.2078]
[1761873345040,3.0812,3854.5,3854.4,1.2773]
[1761873345335,12.52625086,3854.5,3854.4,0.00300046]
[1761873345528,14.28815086,3854.5,3854.4,0.00300046]
[1761873346522,4.84615086,3854.5,3854.4,1.28030046]
[1761873346722,13.53425086,3854.5,3854.4,7.35560046]
[1761873346928,13.53425086,3854.5,3854.4,5.61400046]
[1761873347138,13.53425086,3854.5,3854.4,4.48810046]
[1761873347631,13.53425086,3854.5,3854.4,3.21080046]
[1761873347840,13.53425086,3854.5,3854.4,0.00300046]
[1761873348131,14.28815086,3854.5,3854.4,0.00300046]
[1761873349131,1.86335487,3857.3,3856.6,1.1259]
[1761873349332,0.2883,3857.7,3857.6,1.7416]
[1761873349635,0.2883,3857.7,3857.6,3.42808064]
[1761873349930,0.5766,3857.5,3857.4,3.42808064]
[1761873350130,10.02447717,3857.5,3857.4,3.43125913]
[1761873350328,9.73617717,3857.5,3857.4,4.70855913]
[1761873350936,9.73617717,3857.5,3857.4,1.74477849]
[1761873351136,9.73417717,3857.5,3857.4,1.74477849]
[1761873351528,0.29017717,3857.5,3857.4,3.02207849]
[1761873351729,9.44287717,3857.5,3857.4,3.02207849]
[1761873352938,9.44287717,3857.5,3857.4,3.73877849]
[1761873353544,9.73117717,3857.5,3857.4,3.73877849]
[1761873353841,10.01947717,3857.5,3857.4,0.00317849]
[1761873354035,10.01947717,3857.5,3857.4,2.46147849]
[1761873355539,10.01947717,3857.5,3857.4,3.73877849]
[1761873358633,9.73117717,3857.5,3857.4,4.86467849]
[1761873359439,10.01947717,3857.5,3857.4,4.86467849]
[1761873360241,9.44287717,3857.5,3857.4,4.86467849]
[1761873360438,9.73117717,3857.5,3857.4,2.46147849]
[1761873360748,10.01947717,3857.5,3857.4,4.86467849]
[1761873362047,3.2078,3858.5,3857.7,1.7416]
[1761873362346,0.5766,3858.1,3858.0,1.994]
[1761873362547,0.5766,3858.1,3858.0,0.7167]
[1761873362846,0.5766,3858.1,3858.0,2.4583]
[1761873363044,0.5792081,3858.1,3858.0,2.4583]
[1761873363744,0.2909081,3858.1,3858.0,4.8615]
[1761873365648,0.0026081,3858.1,3858.0,4.8615]
[1761873366448,2.7536081,3858.1,3858.0,4.8615]
[1761873367146,0.0026081,3858.1,3858.0,4.8615]
[1761873369443,0.5792081,3858.1,3858.0,4.8615]
[1761873370541,0.0026081,3858.1,3858.0,4.8615]
[1761873371050,0.0026081,3858.1,3858.0,6.54798064]
[1761873373148,0.5970081,3858.1,3858.0,5.42208064]
[1761873375244,0.5970081,3858.1,3858.0,6.51268064]
[1761873375441,0.2998081,3858.1,3858.0,6.51268064]
[1761873376147,0.0026081,3858.1,3858.0,4.8262]
[1761873376346,0.0026081,3858.1,3858.0,6.51268064]
[1761873377844,2.7085,3859.0,3858.8,1.5828]
[1761873378056,0.453,3859.0,3858.9,2.7461]
[1761873378255,9.885,3859.0,3858.9,2.7461]
[1761873378451,9.885,3859.0,3858.9,1.5828]
[1761873378657,10.1115,3859.0,3858.9,1.5828]
[1761873378856,9.885,3859.0,3858.9,1.5828]
[1761873379057,9.88792534,3859.0,3858.9,1.5828]
[1761873379757,10.11442534,3859.0,3858.9,1.5828]
[1761873381253,1.33142534,3859.0,3858.9,1.5828]
[1761873381458,10.76242534,3859.0,3858.9,1.5828]
[1761873381663,1.33142534,3859.0,3858.9,1.5828]
[1761873381853,10.53592534,3859.0,3858.9,1.5828]
[1761873382252,1.10492534,3859.0,3858.9,1.5828]
[1761873382451,10.53592534,3859.0,3858.9,1.5828]
[1761873382756,10.76242534,3859.0,3858.9,1.5828]
[1761873384751,0.453,3858.5,3858.4,3.2078]
[1761873384958,0.453,3858.5,3858.4,4.3711]
[1761873385350,0.453,3858.5,3858.4,7.0624]
[1761873387562,0.453,3858.2,3858.1,1.83952048]
[1761873387758,3.85972534,3859.0,3858.1,2.94802048]
[1761873388057,0.453,3858.4,3858.3,1.68648064]
[1761873388263,0.2265,3858.2,3858.1,2.94802048]
[1761873388462,9.882,3858.2,3858.1,2.2718]
[1761873388662,0.453,3858.1,3858.0,3.4628]
[1761873389366,0.453,3858.1,3858.0,2.2995]
[1761873391064,0.453,3858.1,3857.7,1.5828]
[1761873391270,0.453,3857.8,3857.7,1.5828]
[1761873391464,0.6795,3857.8,3857.7,1.5828]
[1761873391667,0.2265,3857.5,3857.4,0.71987849]
[1761873391860,10.1065,3857.5,3857.4,0.00317849]
[1761873393170,10.1065,3857.5,3857.4,1.58597849]
[1761873393672,10.1065,3857.5,3857.4,0.00317849]
[1761873394465,10.1065,3857.5,3857.4,1.58597849]
[1761873395471,10.1065,3857.5,3857.4,0.00317849]
[1761873398769,0.6795,3856.4,3856.3,0.67622048]
[1761873398976,0.2265,3855.7,3855.6,2.2718]
[1761873399170,9.6525,3855.7,3855.6,2.2718]
[1761873399377,0.93087552,3857.7,3857.1,2.2718]
[1761873399562,1.86335487,3858.3,3858.2,3.8546]
[1761873399563,1.1476,3858.3,3858.2,3.8546]
[1761873399762,1.15004753,3858.3,3858.2,3.8546]
[1761873401469,3.94654753,3858.3,3858.2,3.8546]
[1761873402780,0.93087552,3859.2,3858.0,3.8834]
[1761873402781,0.93087552,3859.6,3858.9,2.7574]
[1761873403072,1.85604602,3859.9,3858.9,2.7574]
[1761873403073,0.97177183,3859.9,3859.8,3.8263]
[1761873403278,6.82397183,3859.9,3859.8,3.8263]
[1761873403775,0.4741036,3859.9,3859.8,3.8263]
[1761873403976,6.1471036,3859.9,3859.8,3.8263]
[1761873404175,0.4741036,3859.9,3859.8,3.8263]
[1761873404370,6.2011036,3859.9,3859.8,3.8263]
[1761873404680,7.2027036,3859.9,3859.8,3.8263]
[1761873404882,7.2027036,3859.9,3859.8,2.7286]
[1761873405185,0.9749036,3859.9,3859.8,3.8263]
[1761873405481,6.8301036,3859.9,3859.8,3.8263]
[1761873405671,7.3309036,3859.9,3859.8,3.8263]
[1761873405868,7.8317036,3859.9,3859.8,3.8263]
[1761873406068,7.8317036,3859.9,3859.8,2.7286]
[1761873406269,7.8317036,3859.9,3859.8,3.8263]
[1761873406476,0.4741036,3859.9,3859.8,3.8263]
[1761873406677,9.8981036,3859.9,3859.8,3.8263]
[1761873407380,9.8971036,3859.9,3859.8,3.8263]
[1761873408172,0.93087552,3861.4,3861.1,1.6597]
[1761873408173,3.7086,3861.4,3861.1,1.6597]
[1761873408384,2.1261,3861.2,3861.1,1.6597]
[1761873408679,3.5364,3860.9,3860.8,1.6597]
[1761873408876,1.0616,3860.9,3860.8,3.8263]
[1761873409176,3.2078,3861.8,3861.3,3.8263]
[1761873409477,1.6892,3863.2,3861.7,3.2078]
[1761873409680,1.6892,3862.4,3861.8,3.2078]
[1761873409867,3.8153,3861.9,3861.8,3.2078]
[1761873410273,3.2078,3862.9,3862.2,2.1666]
[1761873410577,1.6892,3862.7,3862.5,1.6597]
[1761873410880,3.8153,3862.6,3862.3,3.2078]
[1761873411082,3.8153,3862.4,3862.3,3.2078]
[1761873411378,9.451,3862.8,3861.9,3.2078]
[1761873411379,2.7508,3862.0,3861.9,3.2078]
[1761873411579,12.2008,3862.0,3861.9,3.2078]
[1761873412166,13.2653,3862.0,3861.9,3.2078]
[1761873412368,13.2653,3862.0,3861.9,5.9364]
[1761873412572,1.6892,3861.9,3861.6,1.6597]
[1761873412778,2.7508,3861.6,3861.5,5.9364]
[1761873413275,4.4743,3861.6,3861.5,3.2078]
[1761873413677,3.8153,3861.6,3861.5,3.2078]
[1761873414186,1.6892,3861.5,3861.1,3.2078]
[1761873414382,1.6892,3861.9,3861.6,1.6597]
[1761873414682,9.444,3861.8,3861.7,1.0689]
[1761873414885,9.444,3861.8,3861.7,2.7286]
[1761873415288,3.8153,3860.9,3860.8,0.00203665]
[1761873415585,3.8153,3860.4,3860.3,3.2078]
[1761873415787,3.8153,3860.4,3859.8,3.2078]
[1761873415788,3.8153,3859.9,3859.8,3.2078]
[1761873415980,13.2733,3859.9,3859.8,3.2078]
[1761873416578,13.2755168,3859.9,3859.8,3.20973116]
[1761873416782,13.2755168,3859.9,3859.8,4.86943116]
[1761873416988,0.18498175,3861.6,3860.5,1.0689]
[1761873417277,0.18498175,3861.6,3860.8,3.2078]
[1761873417278,2.7508,3860.9,3860.8,3.2078]
[1761873417480,1.6892,3860.8,3860.6,1.6597]
[1761873417676,1.6892,3860.8,3860.6,2.7286]
[1761873417677,9.477,3860.7,3860.6,2.7286]
[1761873418077,9.48009545,3860.7,3860.6,2.7286]
[1761873418380,12.23089545,3860.7,3860.3,3.2078]
[1761873418582,2.7508,3860.4,3860.3,3.2078]
[1761873418779,3.8153,3860.4,3860.3,3.2078]
[1761873419175,3.8153,3860.4,3860.3,5.9364]
[1761873419376,10.9683,3860.4,3860.3,5.9364]
[1761873420281,0.00309545,3860.7,3860.6,3.8263]
[1761873420485,4.14809545,3860.7,3860.6,3.8263]
[1761873420678,9.47809545,3860.7,3860.6,3.8263]
[1761873420881,0.00309545,3860.7,3860.6,3.8263]
[1761873421184,4.14309545,3860.7,3860.6,3.8263]
[1761873421387,6.89389545,3860.7,3860.6,3.8263]
[1761873421783,6.89389545,3860.7,3860.6,1.0689]
[1761873421984,6.89389545,3860.7,3860.3,3.2078]
[1761873421985,1.6892,3860.6,3860.3,4.8675]
[1761873422483,3.8153,3860.4,3860.3,3.2078]
[1761873423085,1.6892,3860.3,3860.0,1.6597]
[1761873423290,3.8153,3860.0,3859.9,3.2078]
[1761873423479,11.5513,3860.0,3859.9,3.2078]
[1761873424584,3.8153,3859.9,3859.8,0.00193116]
[1761873426890,3.8153,3859.9,3859.5,3.2078]
[1761873426891,3.8153,3859.6,3859.5,3.11393341]
[1761873427784,3.8153,3859.6,3859.5,3.11709295]
[1761873427985,13.2783,3859.6,3859.5,0.00315954]
[1761873428185,13.2783,3859.6,3859.1,3.2078]
[1761873428186,3.8153,3858.8,3858.7,3.2078]
[1761873428386,13.2733,3858.8,3858.7,3.2078]
[1761873429086,3.8153,3859.7,3859.2,2.2903]
[1761873429393,13.2723,3859.6,3859.3,3.2078]
[1761873429584,2.7508,3859.4,3859.3,4.2767]
[1761873429886,1.6892,3859.8,3859.4,1.6597]
[1761873430085,1.0616,3859.8,3859.7,2.7286]
[1761873430283,12.2208,3859.8,3859.7,2.7286]
[1761873430588,2.7508,3859.8,3859.7,2.7286]
[1761873430786,13.2853,3859.8,3859.3,3.2078]
[1761873431084,2.7711,3859.5,3859.4,2.7519]
[1761873431684,1.0608,3859.5,3859.4,2.7519]
[1761873432088,1.0608,3859.5,3859.4,3.8058]
[1761873433185,2.7711,3859.5,3859.4,3.8058]
[1761873433593,10.5228,3859.5,3859.4,3.8058]
[1761873437789,1.0608,3859.5,3859.4,3.8058]
[1761873438093,10.5088,3859.5,3859.4,3.8058]
[1761873438289,10.5088,3859.5,3859.4,1.0479]
[1761873438290,13.8721,3859.5,3859.4,1.0479]
[1761873438495,13.8721,3859.5,3858.7,0.00223777]
[1761873438496,3.7562,3858.8,3858.7,0.00223777]
[1761873438791,13.1952,3858.8,3858.7,0.00223777]
[1761873438991,11.5545,3858.8,3858.7,3.74423777]
[1761873439296,13.1952,3858.8,3858.7,3.74423777]
[1761873441996,13.1952,3858.8,3858.7,1.02453777]
[1761873442695,13.1952,3858.8,3858.7,0.00223777]
[1761873445501,10.4484,3858.8,3858.7,3.74423777]
[1761873445801,13.1812,3858.8,3858.7,0.00223777]
[1761873447896,13.1822,3858.8,3858.7,3.74423777]
[1761873448286,13.1822,3858.8,3858.7,0.00223777]
[1761873449098,3.7562,3857.8,3857.7,5.8981]
[1761873449292,13.1822,3857.8,3857.7,6.9498]
[1761873450097,13.18475398,3857.8,3857.7,4.23274504]
[1761873450301,11.54405398,3857.8,3857.7,6.95244504]
[1761873452601,13.18475398,3857.8,3857.7,5.90074504]
[1761873452990,11.54405398,3857.8,3857.7,6.95244504]
[1761873453187,0.00255398,3857.8,3857.7,6.95244504]
[1761873453393,9.42955398,3857.8,3857.7,6.95244504]
[1761873454303,0.00255398,3857.8,3857.7,6.95244504]
[1761873454499,9.42955398,3857.8,3857.7,6.95244504]
[1761873455694,9.42955398,3857.8,3857.7,14.95244504]
[1761873460496,13.18575398,3857.8,3857.7,5.90074504]
[1761873461200,13.18575398,3857.8,3857.7,3.21044504]
[1761873462403,13.18575398,3857.8,3857.7,0.00264504]
[1761873464802,3.75875398,3857.8,3857.7,2.61344504]
[1761873465004,13.18575398,3857.8,3857.7,2.61344504]
[1761873465209,13.18575398,3857.8,3857.7,0.00264504]
[1761873465506,13.18575398,3857.8,3857.7,2.61344504]
[1761873465705,3.75875398,3857.8,3857.7,2.61344504]
[1761873465902,13.18475398,3857.8,3857.7,2.61344504]
[1761873466099,13.18475398,3857.8,3857.7,1.11604504]
[1761873466306,13.18475398,3857.8,3857.7,0.00264504]
[1761873467818,3.5347,3857.3,3857.2,3.2078]
[1761873468110,12.9607,3857.3,3857.2,3.2078]
[1761873468904,12.9607,3857.3,3857.2,3.2107107]
[1761873476418,12.9607,3857.3,3857.2,0.0029107]
[1761873477112,2.0277,3856.4,3856.3,3.2078]
[1761873477314,12.9597,3856.4,3856.3,3.2078]
[1761873477510,12.9597,3856.4,3856.3,4.3212]
[1761873477711,12.9597,3856.4,3856.3,5.8186]
[1761873478018,12.9597,3856.4,3856.3,3.20984318]
[1761873478210,12.9597,3856.4,3856.3,0.00204318]
[1761873478513,14.14404795,3856.4,3856.3,0.00204318]
[1761873478717,12.9597,3856.4,3856.3,0.00204318]
[1761873482212,12.9597,3856.4,3855.4,4.7052]
[1761873482213,4.1632,3855.5,3855.4,5.8186]
[1761873482406,1.507,3857.1,3856.5,1.1134]
[1761873482608,1.0867,3856.9,3856.8,3.6441]
[1761873482815,1.0867,3856.6,3856.5,4.9371]
[1761873483017,3.5347,3856.2,3856.1,5.3545]
[1761873483319,12.9597,3856.2,3856.1,5.35686031]
[1761873483522,11.4527,3856.2,3856.1,6.85426031]
[1761873485318,2.0277,3856.2,3856.1,6.85426031]
[1761873485525,1.507,3856.9,3856.4,3.6441]
[1761873485715,3.5347,3856.9,3856.8,2.6108]
[1761873485918,12.9597,3856.9,3856.8,2.6108]
[1761873486229,12.9597,3856.9,3856.5,3.8237]
[1761873486230,1.0867,3856.6,3856.5,5.9704]
[1761873486418,10.5117,3856.6,3856.5,5.9704]
[1761873486821,12.9597,3856.6,3856.5,3.2078]
[1761873487215,1.0867,3856.2,3856.1,5.35686031]
[1761873487522,10.5117,3856.2,3856.1,5.35686031]
[1761873487722,12.9597,3856.2,3856.1,6.85426031]
[1761873488121,12.9597,3856.2,3856.1,3.21016031]
[1761873489915,12.9597,3856.2,3855.6,3.2078]
[1761873489916,1.0867,3855.7,3855.6,3.2078]
[1761873490114,12.9587,3855.7,3855.6,3.2078]
[1761873490318,12.9587,3855.7,3855.6,5.8186]
[1761873490631,9.424,3855.7,3855.6,6.8519]
[1761873491026,3.3351,3856.1,3856.0,0.9612]
[1761873491224,0.968,3855.8,3855.7,2.2642]
[1761873491530,12.5361,3855.8,3855.7,2.2642]
[1761873491931,12.5361,3855.8,3854.8,2.59557268]
[1761873491932,0.0776,3855.7,3854.5,0.621]
[1761873492127,3.2078,3854.6,3854.5,0.621]
[1761873492318,3.2078,3854.6,3854.5,1.924]
[1761873492319,12.6318,3854.6,3854.5,1.924]
[1761873492520,12.6318,3854.6,3854.1,1.303]
[1761873492836,3.2078,3854.2,3854.1,1.30624038]
[1761873493137,12.6318,3854.2,3854.1,1.303]
[1761873493329,12.6318,3854.2,3854.1,2.2642]
[1761873494128,12.6318,3854.2,3854.1,2.26695066]
[1761873494424,12.6318,3854.2,3854.1,0.00275066]
[1761873495734,12.6318,3854.2,3853.1,1.303]
[1761873495939,3.2078,3853.3,3853.1,1.303]
[1761873496232,9.426,3853.2,3853.1,1.303]
[1761873496628,9.426,3853.2,3853.1,1.30619467]
[1761873497032,9.426,3853.2,3853.1,2.26739467]
[1761873497230,3.2078,3853.3,3853.2,3.5545]
[1761873497433,12.6338,3853.3,3853.2,3.5545]
[1761873497630,12.6338,3853.3,3853.2,2.5102]
[1761873497938,12.6338,3853.3,3853.2,1.4708]
[1761873498433,12.6338,3853.3,3853.1,0.00319467]
[1761873500326,12.6338,3853.3,3852.5,0.621]
[1761873500631,3.2078,3852.7,3852.3,1.4708]
[1761873500831,9.428,3852.6,3852.3,1.4708]
[1761873501039,9.428,3852.6,3852.1,1.4708]
[1761873501234,3.2078,3852.2,3852.1,1.4708]
[1761873501434,12.6358,3852.2,3852.1,0.00185956]
[1761873502334,1.68781215,3852.7,3852.6,1.0443]
[1761873502335,11.979,3852.7,3852.6,1.0443]
[1761873502539,11.979,3852.7,3852.6,2.0837]
[1761873502936,13.0265,3852.7,3852.6,2.0837]
[1761873503133,1.6157,3853.0,3852.9,1.0394]
[1761873503441,5.2691,3853.3,3853.2,1.0394]
[1761873503734,1.5372,3853.2,3852.6,4.6786]
[1761873504335,3.5985,3853.2,3853.1,1.0394]
[1761873504742,15.1878,3853.3,3853.2,3.5545]
[1761873504936,11.98,3853.3,3853.2,3.5545]
[1761873505636,11.98,3853.3,3853.0,3.2078]
[1761873505637,4.2216,3853.7,3853.6,2.0837]
[1761873506036,13.6506,3853.7,3853.6,3.5545]
[1761873506342,15.1878,3853.7,3853.6,3.5545]
[1761873506644,11.98,3853.7,3853.6,3.5545]
[1761873506936,9.429,3853.7,3853.6,3.5545]
[1761873510050,2.551,3854.3,3854.2,3.5545]
[1761873510337,3.21031703,3854.6,3854.5,3.5545]
[1761873510338,0.00251703,3854.6,3854.5,3.5545]
[1761873510639,11.56101703,3854.6,3854.5,1.0394]
[1761873510845,2.551,3854.2,3854.1,6.7623]
[1761873511036,11.98,3854.2,3854.1,6.7623]
[1761873511740,10.4428,3854.2,3854.1,6.7623]
[1761873511943,9.429,3854.2,3854.1,6.7623]
[1761873512145,10.9662,3854.2,3854.1,6.7623]
[1761873513631,9.429,3854.2,3854.1,6.7623]
[1761873516334,11.98,3854.2,3854.1,6.7623]
[1761873517036,9.429,3854.2,3854.1,6.7623]
[1761873517343,11.98,3854.2,3854.1,6.7623]
[1761873518444,9.429,3854.2,3854.1,6.7623]
[1761873521440,0.00251703,3854.6,3854.5,3.9706]
[1761873521644,0.00251703,3854.6,3854.5,7.1784]
[1761873523045,13.04461703,3854.6,3854.5,3.2078]
[1761873525549,13.04461703,3854.6,3854.5,4.1737]
[1761873526053,13.04461703,3854.6,3854.5,3.2078]
[1761873526354,13.04461703,3854.6,3854.5,4.1737]
[1761873527556,13.04461703,3854.6,3854.5,3.2078]
[1761873530649,12.02811703,3854.6,3853.7,3.2078]
[1761873530855,3.6161,3853.8,3853.7,5.2411]
[1761873531154,13.0401,3853.8,3853.7,6.806]
[1761873531650,13.0401,3853.8,3853.7,5.2411]
[1761873531846,13.0401,3853.8,3853.7,6.806]
[1761873533048,13.0401,3853.8,3853.7,4.1737]
[1761873533548,3.6161,3853.8,3853.7,3.2078]
[1761873533846,12.0961,3853.8,3853.7,3.2078]
[1761873534049,2.6211,3854.2,3854.1,3.5982]
[1761873534245,12.0441,3854.2,3854.1,6.806]
[1761873536652,12.0431,3854.2,3854.1,6.806]
[1761873537755,13.0381,3854.2,3854.1,5.2411]
[1761873538049,13.0381,3854.2,3854.1,4.1737]
[1761873538351,13.0381,3854.2,3854.1,5.2411]
[1761873538553,13.0381,3854.2,3854.1,4.1737]
[1761873538754,13.0381,3854.2,3854.1,3.2078]
[1761873539052,12.0431,3854.2,3854.1,6.806]
[1761873539256,13.0381,3854.2,3854.1,5.2411]
[1761873540052,13.0381,3854.2,3854.1,4.1737]
[1761873540953,13.0381,3854.2,3854.1,3.2078]
[1761873541148,13.0381,3854.2,3854.1,4.1737]
[1761873541348,13.0381,3854.2,3854.1,5.2411]
[1761873542249,13.0381,3854.2,3854.1,3.2078]
[1761873542855,3.6161,3854.2,3854.1,5.2411]
[1761873543156,13.0361,3854.2,3854.1,6.806]
[1761873543456,3.6161,3854.2,3854.1,6.806]
[1761873543655,13.0361,3854.2,3854.1,6.806]
[1761873544754,13.0361,3854.2,3854.1,5.2411]
[1761873544960,13.0361,3854.2,3854.1,6.806]
[1761873545456,13.0361,3854.2,3854.1,4.1737]
[1761873545653,13.0361,3854.2,3854.1,3.2078]
[1761873546451,1.0165,3853.8,3853.7,3.2078]
[1761873546658,13.0351,3853.8,3853.7,3.2078]
[1761873547176,13.0351,3853.8,3853.7,4.1737]
[1761873548060,1.6061,3854.0,3853.9,2.0333]
[1761873548276,12.6297,3854.0,3853.9,3.5982]
[1761873548470,12.6297,3854.0,3853.9,2.0333]
[1761873548471,13.6247,3854.0,3853.9,2.0333]
[1761873548772,13.6247,3854.0,3853.9,0.9659]
[1761873549174,13.6247,3854.0,3853.7,3.2078]
[1761873549378,3.6161,3853.8,3853.7,3.2078]
[1761873550768,3.3333,3853.6,3853.5,0.90776053]
[1761873550971,3.3333,3853.4,3853.3,3.2078]
[1761873551173,11.8168,3853.4,3853.3,6.5636]
[1761873551673,9.418,3853.4,3853.3,6.5636]
[1761873552476,11.8168,3853.4,3853.3,6.5636]
[1761873552678,12.7513,3853.4,3853.3,5.1715]
[1761873552977,11.8168,3853.4,3853.3,6.5636]
[1761873553166,12.7513,3853.4,3853.3,5.1715]
[1761873553876,12.7513,3853.4,3853.3,3.2078]
[1761873555771,11.8148,3853.4,3853.3,6.5636]
[1761873555972,12.7493,3853.4,3853.3,5.1715]
[1761873556180,12.7493,3853.4,3853.3,3.89317819]
[1761873556382,12.7493,3853.4,3853.3,4.0984]
[1761873556874,12.7493,3853.4,3853.3,3.2078]
[1761873557978,12.7493,3853.4,3853.3,6.3486]
[1761873557979,12.7483,3853.4,3853.3,6.3486]
[1761873558578,12.7483,3853.4,3853.3,7.03397819]
[1761873558773,0.5896,3854.0,3853.6,3.1408]
[1761873558774,2.3274,3853.7,3853.6,3.1408]
[1761873558970,11.7424,3853.7,3853.6,3.1408]
[1761873559175,11.7424,3853.7,3853.6,3.82597523]
[1761873559375,12.6973,3853.7,3853.6,0.68517523]
[1761873559570,3.2823,3853.6,3853.5,0.68517523]
[1761873559874,3.2823,3853.6,3853.5,1.8208]
[1761873560582,12.6973,3853.6,3853.5,1.8208]
[1761873560780,12.6973,3853.6,3853.5,2.50595857]
[1761873560976,12.6973,3853.6,3853.5,1.57575857]
[1761873561577,12.6973,3853.6,3853.5,0.68515857]
[1761873561777,3.8246,3853.5,3853.4,0.68515857]
[1761873562185,3.2823,3853.4,3853.3,3.89295857]
[1761873562771,3.8246,3853.0,3852.7,0.81033053]
[1761873563081,3.2823,3852.6,3852.5,3.2078]
[1761873563380,12.6953,3852.6,3852.5,3.2078]